[Event "Late-Titled-Tuesday-Blitz-April-16-2024"]
[Site "Chess.com"]
[Date "2024.04.16"]
[Round "2"]
[White "Nor1lsk"]
[Black "KingCyber19"]
[Result "1/2-1/2"]
[WhiteElo "2779"]
[BlackElo "2546"]
[TimeControl "180+1"]
[EndTime "14:19:00 PDT"]
[Termination "Game drawn by agreement"]

1. e4 {[%clk 0:03:00.9]} 1... e5 {[%clk 0:03:00]} 2. Nf3 {[%clk 0:02:58.7]} 2...
Nc6 {[%clk 0:03:00.3]} 3. Nc3 {[%clk 0:02:59.4]} 3... Nf6 {[%clk 0:03:00.2]} 4.
a3 {[%clk 0:03:00]} 4... Be7 {[%clk 0:02:58.1]} 5. d4 {[%clk 0:02:59.8]} 5...
exd4 {[%clk 0:02:56.1]} 6. Nxd4 {[%clk 0:03:00.7]} 6... Nxd4 {[%clk 0:02:44.8]}
7. Qxd4 {[%clk 0:02:59.8]} 7... d6 {[%clk 0:02:43.8]} 8. Bf4 {[%clk 0:02:59.4]}
8... Be6 {[%clk 0:02:39.4]} 9. f3 {[%clk 0:02:58]} 9... O-O {[%clk 0:02:37.7]}
10. O-O-O {[%clk 0:02:56.6]} 10... Nd7 {[%clk 0:02:37.6]} 11. g4 {[%clk
0:02:55.7]} 11... Bg5 {[%clk 0:02:36.2]} 12. Qd2 {[%clk 0:02:47.1]} 12... Bxf4
{[%clk 0:02:34.5]} 13. Qxf4 {[%clk 0:02:48]} 13... Qf6 {[%clk 0:02:34.1]} 14.
Qe3 {[%clk 0:02:46.3]} 14... Ne5 {[%clk 0:02:33.7]} 15. Be2 {[%clk 0:02:45.6]}
15... Ng6 {[%clk 0:02:33.7]} 16. Kb1 {[%clk 0:02:42.8]} 16... Qf4 {[%clk
0:02:33.5]} 17. Qg1 {[%clk 0:02:30.1]} 17... a6 {[%clk 0:02:17.9]} 18. h4 {[%clk
0:02:24.2]} 18... b5 {[%clk 0:02:14.7]} 19. h5 {[%clk 0:02:19.6]} 19... Ne5
{[%clk 0:02:14.4]} 20. Qh2 {[%clk 0:01:56.3]} 20... Qxh2 {[%clk 0:01:48.9]} 21.
Rxh2 {[%clk 0:01:56.1]} 21... Bc4 {[%clk 0:01:44.1]} 22. Bxc4 {[%clk 0:01:51.5]}
22... bxc4 {[%clk 0:01:23.3]} 23. Rh3 {[%clk 0:01:36.3]} 23... Rfb8 {[%clk
0:01:10.2]} 24. Rg3 {[%clk 0:01:04.4]} 24... Rb7 {[%clk 0:01:09.6]} 25. f4
{[%clk 0:01:04.2]} 25... Nd7 {[%clk 0:01:09.4]} 26. Rd4 {[%clk 0:01:01.1]} 26...
Rab8 {[%clk 0:01:08]} 27. Nd1 {[%clk 0:01:01]} 27... Nb6 {[%clk 0:00:58.5]} 28.
Kc1 {[%clk 0:00:59]} 28... Kf8 {[%clk 0:00:50.3]} 29. Ne3 {[%clk 0:00:51.4]}
29... Na4 {[%clk 0:00:43.2]} 30. Nxc4 {[%clk 0:00:51.1]} 30... Nxb2 {[%clk
0:00:42.2]} 31. Nxb2 {[%clk 0:00:37.7]} 31... Rxb2 {[%clk 0:00:42.3]} 32. Rc3
{[%clk 0:00:38.1]} 32... R8b7 {[%clk 0:00:37.2]} 33. Rdc4 {[%clk 0:00:36.6]}
33... c5 {[%clk 0:00:36.2]} 34. e5 {[%clk 0:00:30.5]} 34... Rb1+ {[%clk
0:00:35.3]} 35. Kd2 {[%clk 0:00:30.3]} 35... dxe5 {[%clk 0:00:36.2]} 36. fxe5
{[%clk 0:00:30.6]} 36... Rg1 {[%clk 0:00:32.5]} 37. Ke2 {[%clk 0:00:23.4]} 37...
Ke7 {[%clk 0:00:27.6]} 38. Kf2 {[%clk 0:00:23.2]} 38... Rbb1 {[%clk 0:00:26.2]}
39. Rxc5 {[%clk 0:00:19.9]} 39... Rbf1+ {[%clk 0:00:26.3]} 40. Ke2 {[%clk
0:00:20]} 40... Re1+ {[%clk 0:00:26.6]} 41. Kd2 {[%clk 0:00:20.2]} 41... Rd1+
{[%clk 0:00:27.1]} 42. Ke2 {[%clk 0:00:20.3]} 42... Rde1+ {[%clk 0:00:27]} 43.
Kf2 {[%clk 0:00:20.5]} 43... Ref1+ {[%clk 0:00:25.3]} 44. Ke3 {[%clk 0:00:20.8]}
44... Rxg4 {[%clk 0:00:21.6]} 45. Rc7+ {[%clk 0:00:20.6]} 45... Ke6 {[%clk
0:00:21.7]} 46. R3c6+ {[%clk 0:00:20.9]} 46... Kxe5 {[%clk 0:00:22]} 47. Rc5+
{[%clk 0:00:18.2]} 47... Kf6 {[%clk 0:00:22.3]} 48. R7c6+ {[%clk 0:00:17.5]}
48... Ke7 {[%clk 0:00:20.4]} 49. Rxa6 {[%clk 0:00:17.5]} 49... Re1+ {[%clk
0:00:17.7]} 50. Kf3 {[%clk 0:00:17.3]} 50... Rge4 {[%clk 0:00:17.3]} 51. Rc7+
{[%clk 0:00:16.4]} 51... Kf8 {[%clk 0:00:13.8]} 52. Ra8+ {[%clk 0:00:15.6]}
52... Re8 {[%clk 0:00:14.5]} 53. Rxe8+ {[%clk 0:00:15.6]} 53... Kxe8 {[%clk
0:00:14.5]} 54. a4 {[%clk 0:00:14.2]} 54... Re5 {[%clk 0:00:14.7]} 55. c4 {[%clk
0:00:13.2]} 55... Rxh5 {[%clk 0:00:14.3]} 56. Ke4 {[%clk 0:00:13.7]} 56... Ra5
{[%clk 0:00:14.1]} 57. c5 {[%clk 0:00:09.7]} 57... Kd8 {[%clk 0:00:08.8]} 58.
Rxf7 {[%clk 0:00:09.5]} 58... Rxc5 {[%clk 0:00:09]} 59. Rxg7 {[%clk 0:00:09.3]}
59... Rc4+ {[%clk 0:00:09.6]} 60. Kf5 {[%clk 0:00:08.8]} 60... Rxa4 {[%clk
0:00:10.5]} 61. Rxh7 {[%clk 0:00:09.2]} 1/2-1/2

[Event "Late-Titled-Tuesday-Blitz-April-16-2024"]
[Site "Chess.com"]
[Date "2024.04.16"]
[Round "2"]
[White "Rawnsdale"]
[Black "JaackCamel"]
[Result "1-0"]
[WhiteElo "2484"]
[BlackElo "2228"]
[TimeControl "180+1"]
[EndTime "14:19:00 PDT"]
[Termination "Rawnsdale won on time"]

1. e4 {[%clk 0:03:00.9]} 1... e6 {[%clk 0:02:59.6]} 2. d4 {[%clk 0:03:00.7]}
2... d5 {[%clk 0:02:59.4]} 3. e5 {[%clk 0:03:01.2]} 3... c5 {[%clk 0:02:59]} 4.
c3 {[%clk 0:03:01.8]} 4... Nc6 {[%clk 0:02:58.7]} 5. Nf3 {[%clk 0:03:02.1]} 5...
Qb6 {[%clk 0:02:58.3]} 6. Be2 {[%clk 0:03:01.5]} 6... cxd4 {[%clk 0:02:55]} 7.
cxd4 {[%clk 0:03:02.4]} 7... Nh6 {[%clk 0:02:53.6]} 8. Nc3 {[%clk 0:03:00]} 8...
Nf5 {[%clk 0:02:50.6]} 9. Na4 {[%clk 0:02:59.6]} 9... Qa5+ {[%clk 0:02:46.3]}
10. Bd2 {[%clk 0:02:59.4]} 10... Bb4 {[%clk 0:02:45.7]} 11. Bc3 {[%clk
0:02:40.7]} 11... O-O {[%clk 0:02:33.5]} 12. O-O {[%clk 0:02:38.6]} 12... Bd7
{[%clk 0:02:21.3]} 13. a3 {[%clk 0:02:36.3]} 13... Bxc3 {[%clk 0:02:19.7]} 14.
Nxc3 {[%clk 0:02:36.4]} 14... a6 {[%clk 0:02:07.2]} 15. b4 {[%clk 0:02:35.6]}
15... Qd8 {[%clk 0:01:55.9]} 16. Rc1 {[%clk 0:02:18.8]} 16... f6 {[%clk
0:01:55.6]} 17. Re1 {[%clk 0:02:11]} 17... fxe5 {[%clk 0:01:55.2]} 18. dxe5
{[%clk 0:02:08.7]} 18... Qe8 {[%clk 0:01:31.8]} 19. Bd3 {[%clk 0:02:05.3]} 19...
Nce7 {[%clk 0:01:29]} 20. Ne2 {[%clk 0:01:54.9]} 20... Bb5 {[%clk 0:01:13.5]}
21. Nf4 {[%clk 0:01:38.2]} 21... Bxd3 {[%clk 0:01:09.9]} 22. Qxd3 {[%clk
0:01:28]} 22... Nc6 {[%clk 0:01:03.1]} 23. Ng5 {[%clk 0:01:16.9]} 23... Ncd4
{[%clk 0:00:55.3]} 24. Rc7 {[%clk 0:01:13.1]} 24... h6 {[%clk 0:00:49.4]} 25.
Nf3 {[%clk 0:01:06.2]} 25... Nb5 {[%clk 0:00:42.5]} 26. Rc5 {[%clk 0:00:44.6]}
26... Rc8 {[%clk 0:00:34.8]} 27. Rec1 {[%clk 0:00:43.9]} 27... Rxc5 {[%clk
0:00:34.2]} 28. Rxc5 {[%clk 0:00:44]} 28... Qf7 {[%clk 0:00:32.1]} 29. a4 {[%clk
0:00:40.3]} 29... Na7 {[%clk 0:00:23.2]} 30. Qc2 {[%clk 0:00:25.2]} 30... Nc6
{[%clk 0:00:20.5]} 31. b5 {[%clk 0:00:24]} 31... axb5 {[%clk 0:00:19.6]} 32.
axb5 {[%clk 0:00:24.2]} 32... Ncd4 {[%clk 0:00:19.2]} 33. Qd3 {[%clk 0:00:22.3]}
33... Nxf3+ {[%clk 0:00:16.4]} 34. gxf3 {[%clk 0:00:22.5]} 34... Nh4 {[%clk
0:00:15.4]} 35. Ne2 {[%clk 0:00:11.5]} 35... Nxf3+ {[%clk 0:00:15.2]} 36. Kh1
{[%clk 0:00:11.9]} 36... Nxe5 {[%clk 0:00:12.7]} 37. Qg3 {[%clk 0:00:12]} 37...
Ng6 {[%clk 0:00:11.6]} 38. Rc7 {[%clk 0:00:11.6]} 38... Qf3+ {[%clk 0:00:10.7]}
39. Qxf3 {[%clk 0:00:11.8]} 39... Rxf3 {[%clk 0:00:10.7]} 40. Kg2 {[%clk
0:00:12.7]} 40... Rb3 {[%clk 0:00:10]} 41. Rxb7 {[%clk 0:00:12.4]} 41... Ne5
{[%clk 0:00:09.5]} 42. b6 {[%clk 0:00:11.3]} 42... Nc4 {[%clk 0:00:09.1]} 43.
Rb8+ {[%clk 0:00:11.5]} 43... Kh7 {[%clk 0:00:08.9]} 44. b7 {[%clk 0:00:12.4]}
44... Nd6 {[%clk 0:00:09]} 45. Nf4 {[%clk 0:00:10.7]} 45... Rxb7 {[%clk
0:00:08.6]} 46. Rd8 {[%clk 0:00:10.7]} 46... Nf7 {[%clk 0:00:08.4]} 47. Re8
{[%clk 0:00:10.3]} 47... e5 {[%clk 0:00:08.3]} 48. Nxd5 {[%clk 0:00:10.6]} 48...
Rb5 {[%clk 0:00:07.3]} 49. Ne3 {[%clk 0:00:10.4]} 49... Kg6 {[%clk 0:00:07.3]}
50. h4 {[%clk 0:00:10.3]} 50... h5 {[%clk 0:00:07]} 51. Re6+ {[%clk 0:00:10.2]}
51... Kh7 {[%clk 0:00:06]} 52. Nf5 {[%clk 0:00:10.6]} 52... g6 {[%clk
0:00:05.7]} 53. Ne3 {[%clk 0:00:09.6]} 53... Kg7 {[%clk 0:00:05.8]} 54. Re7
{[%clk 0:00:10.1]} 54... Kf6 {[%clk 0:00:06.2]} 55. Ra7 {[%clk 0:00:10.2]} 55...
Nd6 {[%clk 0:00:05.9]} 56. Rd7 {[%clk 0:00:09.4]} 56... Ke6 {[%clk 0:00:05.8]}
57. Rg7 {[%clk 0:00:08.3]} 57... Kf6 {[%clk 0:00:05.9]} 58. Rg8 {[%clk
0:00:08.9]} 58... Nf5 {[%clk 0:00:05.6]} 59. Rf8+ {[%clk 0:00:08.6]} 59... Ke6
{[%clk 0:00:05.5]} 60. Nxf5 {[%clk 0:00:08.3]} 60... gxf5 {[%clk 0:00:05.8]} 61.
Rh8 {[%clk 0:00:09.2]} 61... f4 {[%clk 0:00:04.6]} 62. Rh6+ {[%clk 0:00:08.8]}
62... Kd5 {[%clk 0:00:04.6]} 63. Rxh5 {[%clk 0:00:09.7]} 63... Ke4 {[%clk
0:00:05]} 64. Rg5 {[%clk 0:00:10]} 64... Rb3 {[%clk 0:00:05.2]} 65. h5 {[%clk
0:00:10.2]} 65... Rb6 {[%clk 0:00:04.1]} 66. Kh3 {[%clk 0:00:07.4]} 66... Rb1
{[%clk 0:00:02.1]} 67. Kg2 {[%clk 0:00:05.5]} 67... f3+ {[%clk 0:00:02.1]} 68.
Kh2 {[%clk 0:00:04.7]} 1-0

[Event "Late-Titled-Tuesday-Blitz-April-16-2024"]
[Site "Chess.com"]
[Date "2024.04.16"]
[Round "2"]
[White "Leebit02"]
[Black "JaloliddinIlkhomi"]
[Result "0-1"]
[WhiteElo "2540"]
[BlackElo "2789"]
[TimeControl "180+1"]
[EndTime "14:19:02 PDT"]
[Termination "JaloliddinIlkhomi won on time"]

1. d4 {[%clk 0:03:00.2]} 1... Nf6 {[%clk 0:02:59.4]} 2. c4 {[%clk 0:03:00.1]}
2... e6 {[%clk 0:02:59.9]} 3. Nf3 {[%clk 0:03:00.2]} 3... b6 {[%clk 0:03:00]} 4.
g3 {[%clk 0:02:59.8]} 4... Bb7 {[%clk 0:03:00.6]} 5. Bg2 {[%clk 0:03:00.1]} 5...
Bb4+ {[%clk 0:03:01.1]} 6. Bd2 {[%clk 0:02:55.3]} 6... Bxd2+ {[%clk 0:03:01.6]}
7. Nbxd2 {[%clk 0:02:51.1]} 7... O-O {[%clk 0:03:01.7]} 8. Qc2 {[%clk
0:02:48.3]} 8... c5 {[%clk 0:03:01.3]} 9. dxc5 {[%clk 0:02:06.9]} 9... bxc5
{[%clk 0:03:01.2]} 10. O-O {[%clk 0:02:07.2]} 10... d6 {[%clk 0:03:00.3]} 11.
Rfd1 {[%clk 0:02:00]} 11... Nc6 {[%clk 0:02:59.9]} 12. a3 {[%clk 0:01:59.1]}
12... Qc7 {[%clk 0:03:00]} 13. Qc3 {[%clk 0:01:56.9]} 13... Rfd8 {[%clk
0:02:58]} 14. b4 {[%clk 0:01:54.6]} 14... cxb4 {[%clk 0:02:45]} 15. axb4 {[%clk
0:01:54.6]} 15... a6 {[%clk 0:02:45.7]} 16. Nb3 {[%clk 0:01:42.8]} 16... Qb6
{[%clk 0:02:34.1]} 17. c5 {[%clk 0:01:37.5]} 17... Qxb4 {[%clk 0:02:30.1]} 18.
Qxb4 {[%clk 0:01:37.1]} 18... Nxb4 {[%clk 0:02:31]} 19. cxd6 {[%clk 0:01:27.6]}
19... Bd5 {[%clk 0:02:30.3]} 20. Nc5 {[%clk 0:01:20.2]} 20... Rxd6 {[%clk
0:02:28.1]} 21. Ne5 {[%clk 0:01:19]} 21... Rdd8 {[%clk 0:02:23.7]} 22. e4 {[%clk
0:01:07.8]} 22... Bc6 {[%clk 0:00:46.8]} 23. Rxd8+ {[%clk 0:00:49.3]} 23... Rxd8
{[%clk 0:00:47.7]} 24. Nxc6 {[%clk 0:00:49.4]} 24... Nxc6 {[%clk 0:00:46.9]} 25.
Rxa6 {[%clk 0:00:49.6]} 25... Ne5 {[%clk 0:00:42.1]} 26. Ra1 {[%clk 0:00:45.3]}
26... h6 {[%clk 0:00:39.9]} 27. h3 {[%clk 0:00:44.1]} 27... Rc8 {[%clk
0:00:39.5]} 28. Nb3 {[%clk 0:00:42.5]} 28... Rc2 {[%clk 0:00:39.2]} 29. Rd1
{[%clk 0:00:36.1]} 29... Rb2 {[%clk 0:00:38.6]} 30. Nd4 {[%clk 0:00:36]} 30...
Rb8 {[%clk 0:00:37.5]} 31. Rd2 {[%clk 0:00:34.2]} 31... Rd8 {[%clk 0:00:36.6]}
32. Nb3 {[%clk 0:00:34.5]} 32... Rb8 {[%clk 0:00:35.9]} 33. Nd4 {[%clk
0:00:34.9]} 33... Nc4 {[%clk 0:00:36.3]} 34. Rc2 {[%clk 0:00:34.9]} 34... Nb6
{[%clk 0:00:33.9]} 35. Rb2 {[%clk 0:00:34]} 35... Nbd7 {[%clk 0:00:33.9]} 36.
Rxb8+ {[%clk 0:00:33.7]} 36... Nxb8 {[%clk 0:00:34.8]} 37. f4 {[%clk 0:00:32]}
37... Nbd7 {[%clk 0:00:35.1]} 38. Kf2 {[%clk 0:00:32.4]} 38... Nc5 {[%clk
0:00:35.1]} 39. Ke3 {[%clk 0:00:33.1]} 39... Kf8 {[%clk 0:00:34.5]} 40. Nc2
{[%clk 0:00:33.3]} 40... Ke7 {[%clk 0:00:34.7]} 41. Kd4 {[%clk 0:00:33.3]} 41...
Nb3+ {[%clk 0:00:33.9]} 42. Ke3 {[%clk 0:00:31.6]} 42... Nc5 {[%clk 0:00:33.5]}
43. g4 {[%clk 0:00:31]} 43... g5 {[%clk 0:00:32.7]} 44. f5 {[%clk 0:00:25.4]}
44... Nfd7 {[%clk 0:00:30]} 45. Kd4 {[%clk 0:00:24.4]} 45... Kd6 {[%clk
0:00:27.7]} 46. Ne3 {[%clk 0:00:23.8]} 46... e5+ {[%clk 0:00:19.5]} 47. Kc4
{[%clk 0:00:24.3]} 47... Nf6 {[%clk 0:00:17.4]} 48. Kb5 {[%clk 0:00:17.9]} 48...
Ncxe4 {[%clk 0:00:17]} 49. Nc4+ {[%clk 0:00:18]} 49... Kd5 {[%clk 0:00:17.6]}
50. Nb6+ {[%clk 0:00:06.3]} 50... Kd4 {[%clk 0:00:17.8]} 51. Kc6 {[%clk
0:00:06]} 51... Nf2 {[%clk 0:00:14]} 52. Kd6 {[%clk 0:00:05.3]} 52... e4 {[%clk
0:00:14.6]} 53. Ke7 {[%clk 0:00:04.9]} 53... e3 {[%clk 0:00:15.2]} 54. Bf3
{[%clk 0:00:03.7]} 54... N6e4 {[%clk 0:00:09.2]} 55. Kxf7 {[%clk 0:00:04.2]}
55... Nd2 {[%clk 0:00:09.6]} 56. Be2 {[%clk 0:00:03.7]} 56... Nd3 {[%clk
0:00:10.2]} 57. f6 {[%clk 0:00:02.6]} 57... Nf4 {[%clk 0:00:10.1]} 58. Bd1
{[%clk 0:00:03]} 58... Ne4 {[%clk 0:00:07.3]} 0-1

[Event "Late-Titled-Tuesday-Blitz-April-16-2024"]
[Site "Chess.com"]
[Date "2024.04.16"]
[Round "2"]
[White "AktilekAskarovich"]
[Black "Mariia89"]
[Result "1-0"]
[WhiteElo "2490"]
[BlackElo "2244"]
[TimeControl "180+1"]
[EndTime "14:20:07 PDT"]
[Termination "AktilekAskarovich won by checkmate"]

1. d4 {[%clk 0:02:52.2]} 1... Nf6 {[%clk 0:02:59.3]} 2. c4 {[%clk 0:02:52.4]}
2... c5 {[%clk 0:02:59.6]} 3. d5 {[%clk 0:02:52.5]} 3... b5 {[%clk 0:02:59.8]}
4. Nf3 {[%clk 0:02:50.2]} 4... bxc4 {[%clk 0:02:58.6]} 5. Nc3 {[%clk 0:02:50.1]}
5... d6 {[%clk 0:02:58]} 6. e4 {[%clk 0:02:50.5]} 6... g6 {[%clk 0:02:57.6]} 7.
Bxc4 {[%clk 0:02:50.5]} 7... Bg7 {[%clk 0:02:58.1]} 8. O-O {[%clk 0:02:51.1]}
8... O-O {[%clk 0:02:58.7]} 9. Re1 {[%clk 0:02:48.6]} 9... Nbd7 {[%clk 0:02:53]}
10. e5 {[%clk 0:02:45.9]} 10... dxe5 {[%clk 0:02:38.1]} 11. Nxe5 {[%clk
0:02:45.9]} 11... Nxe5 {[%clk 0:02:38.6]} 12. Rxe5 {[%clk 0:02:46.8]} 12... Ne8
{[%clk 0:02:35]} 13. Re1 {[%clk 0:02:43.4]} 13... Nd6 {[%clk 0:02:35.5]} 14. Bf1
{[%clk 0:02:44]} 14... Re8 {[%clk 0:02:18.7]} 15. Bg5 {[%clk 0:02:39.1]} 15...
Rb8 {[%clk 0:02:04.2]} 16. Qd2 {[%clk 0:02:32]} 16... Bd7 {[%clk 0:01:31.4]} 17.
a4 {[%clk 0:02:27.8]} 17... Nf5 {[%clk 0:01:21.4]} 18. Nb5 {[%clk 0:02:19.1]}
18... a6 {[%clk 0:01:16.8]} 19. Nc3 {[%clk 0:02:18.5]} 19... Nd4 {[%clk
0:01:13]} 20. Ra3 {[%clk 0:02:11.9]} 20... Rb6 {[%clk 0:00:54.4]} 21. a5 {[%clk
0:02:09.5]} 21... Rb3 {[%clk 0:00:53.6]} 22. Rxb3 {[%clk 0:01:54.4]} 22... Nxb3
{[%clk 0:00:53.3]} 23. Qc2 {[%clk 0:01:55.1]} 23... Nxa5 {[%clk 0:00:50.3]} 24.
Bxa6 {[%clk 0:01:55.5]} 24... Qb6 {[%clk 0:00:48.4]} 25. Bf1 {[%clk 0:01:54]}
25... e6 {[%clk 0:00:43.6]} 26. Na4 {[%clk 0:01:44.8]} 26... Qb4 {[%clk
0:00:26.8]} 27. Bd2 {[%clk 0:01:32.4]} 27... Qxa4 {[%clk 0:00:26.2]} 28. Qxa4
{[%clk 0:01:31.6]} 28... Bxa4 {[%clk 0:00:27.1]} 29. Bxa5 {[%clk 0:01:32.3]}
29... exd5 {[%clk 0:00:26.3]} 30. Rxe8+ {[%clk 0:01:30.7]} 30... Bxe8 {[%clk
0:00:27.2]} 31. b3 {[%clk 0:01:27.4]} 31... Bc6 {[%clk 0:00:22.2]} 32. Bb6
{[%clk 0:01:27.4]} 32... Bd4 {[%clk 0:00:20.1]} 33. b4 {[%clk 0:01:26.5]} 33...
Bc3 {[%clk 0:00:18]} 34. Bxc5 {[%clk 0:01:26.4]} 34... d4 {[%clk 0:00:16.3]} 35.
Bd3 {[%clk 0:01:26.9]} 35... Kg7 {[%clk 0:00:15.6]} 36. b5 {[%clk 0:01:26.9]}
36... Bb7 {[%clk 0:00:15.8]} 37. f3 {[%clk 0:01:25.3]} 37... f5 {[%clk
0:00:15.7]} 38. Kf2 {[%clk 0:01:25.1]} 38... Kf6 {[%clk 0:00:15.8]} 39. Ke2
{[%clk 0:01:25]} 39... Ke5 {[%clk 0:00:15.8]} 40. g3 {[%clk 0:01:25.2]} 40...
Kd5 {[%clk 0:00:15]} 41. Bf8 {[%clk 0:01:25.5]} 41... Ba5 {[%clk 0:00:13.5]} 42.
h4 {[%clk 0:01:22.6]} 42... Bb6 {[%clk 0:00:13.1]} 43. g4 {[%clk 0:01:21.3]}
43... Ke5 {[%clk 0:00:13]} 44. Bg7+ {[%clk 0:01:19.3]} 44... Ke6 {[%clk
0:00:12.6]} 45. gxf5+ {[%clk 0:01:17.8]} 45... gxf5 {[%clk 0:00:13.5]} 46. Bh8
{[%clk 0:01:16.3]} 46... Bd5 {[%clk 0:00:11.7]} 47. Bg7 {[%clk 0:01:15.8]} 47...
Bb7 {[%clk 0:00:11.6]} 48. Bf8 {[%clk 0:01:15.4]} 48... Bd5 {[%clk 0:00:11.3]}
49. Kf2 {[%clk 0:01:13.6]} 49... Bb7 {[%clk 0:00:10.5]} 50. Bh6 {[%clk
0:01:13.6]} 50... Bc7 {[%clk 0:00:09.9]} 51. Bd2 {[%clk 0:01:12.6]} 51... Bb6
{[%clk 0:00:10.4]} 52. Bb4 {[%clk 0:01:12.6]} 52... Bd5 {[%clk 0:00:10.3]} 53.
Kg3 {[%clk 0:01:11.6]} 53... Bb7 {[%clk 0:00:10.3]} 54. Kf4 {[%clk 0:01:11.5]}
54... Bc7+ {[%clk 0:00:09.9]} 55. Kg5 {[%clk 0:01:11.5]} 55... Be5 {[%clk
0:00:03.7]} 56. Bxf5+ {[%clk 0:01:11.4]} 56... Kd5 {[%clk 0:00:02.8]} 57. Bf8
{[%clk 0:01:11.3]} 57... Kc4 {[%clk 0:00:03.7]} 58. b6 {[%clk 0:01:10.7]} 58...
Kb5 {[%clk 0:00:03.6]} 59. Kh6 {[%clk 0:01:10.5]} 59... Kxb6 {[%clk 0:00:03.9]}
60. Bg4 {[%clk 0:01:10]} 60... d3 {[%clk 0:00:03.1]} 61. Kxh7 {[%clk 0:01:10]}
61... d2 {[%clk 0:00:03.1]} 62. f4 {[%clk 0:01:10.5]} 62... Bxf4 {[%clk
0:00:02.7]} 63. h5 {[%clk 0:01:10.6]} 63... Be3 {[%clk 0:00:02.7]} 64. h6 {[%clk
0:01:10.2]} 64... Be4+ {[%clk 0:00:03.2]} 65. Kg7 {[%clk 0:01:10.7]} 65... Kb5
{[%clk 0:00:02.9]} 66. Bd1 {[%clk 0:01:10.5]} 66... Kc4 {[%clk 0:00:02.6]} 67.
h7 {[%clk 0:01:10.8]} 67... Bxh7 {[%clk 0:00:02.5]} 68. Kxh7 {[%clk 0:01:11.7]}
68... Kc3 {[%clk 0:00:03]} 69. Bg7+ {[%clk 0:01:11.4]} 69... Kd3 {[%clk
0:00:02.8]} 70. Kg6 {[%clk 0:01:11.9]} 70... Bd4 {[%clk 0:00:02.9]} 71. Bh6
{[%clk 0:01:11.5]} 71... Bc3 {[%clk 0:00:03.1]} 72. Kf5 {[%clk 0:01:11.6]} 72...
Kc4 {[%clk 0:00:03.7]} 73. Ke4 {[%clk 0:01:11.8]} 73... Kb4 {[%clk 0:00:04.6]}
74. Kd3 {[%clk 0:01:12.1]} 74... Bb2 {[%clk 0:00:03.6]} 75. Bxd2+ {[%clk
0:01:11.9]} 75... Kc5 {[%clk 0:00:04.5]} 76. Be3+ {[%clk 0:01:11.6]} 76... Kd6
{[%clk 0:00:04.8]} 77. Ke4 {[%clk 0:01:11.8]} 77... Ke6 {[%clk 0:00:04.7]} 78.
Bb3+ {[%clk 0:01:12.4]} 78... Kd6 {[%clk 0:00:05.2]} 79. Bf4+ {[%clk 0:01:12.7]}
79... Kc6 {[%clk 0:00:05.4]} 80. Bd5+ {[%clk 0:01:11.8]} 80... Kc5 {[%clk
0:00:05.8]} 81. Bh6 {[%clk 0:01:12]} 81... Kb6 {[%clk 0:00:04.4]} 82. Be3+
{[%clk 0:01:11.7]} 82... Kb5 {[%clk 0:00:04.5]} 83. Kd3 {[%clk 0:01:11.3]} 83...
Ka6 {[%clk 0:00:03.2]} 84. Bc6 {[%clk 0:01:10.7]} 84... Ka5 {[%clk 0:00:02.7]}
85. Kc4 {[%clk 0:01:10.9]} 85... Ba3 {[%clk 0:00:02.3]} 86. Bg5 {[%clk
0:01:08.4]} 86... Bf8 {[%clk 0:00:01.2]} 87. Bb5 {[%clk 0:01:08.6]} 87... Kb6
{[%clk 0:00:01.5]} 88. Be3+ {[%clk 0:01:08.8]} 88... Kc7 {[%clk 0:00:01.9]} 89.
Kd5 {[%clk 0:01:08.7]} 89... Bd6 {[%clk 0:00:01.2]} 90. Bc6 {[%clk 0:01:08]}
90... Bg3 {[%clk 0:00:01.1]} 91. Bg1 {[%clk 0:01:08.1]} 91... Bd6 {[%clk
0:00:01.7]} 92. Bd4 {[%clk 0:01:08]} 92... Bf4 {[%clk 0:00:02]} 93. Bc3 {[%clk
0:01:08.5]} 93... Bd6 {[%clk 0:00:02.4]} 94. Ba5+ {[%clk 0:01:08.7]} 94... Kc8
{[%clk 0:00:01.6]} 95. Kxd6 {[%clk 0:01:09.3]} 95... Kb8 {[%clk 0:00:02.5]} 96.
Bb5 {[%clk 0:01:09.1]} 96... Ka7 {[%clk 0:00:03.4]} 97. Kc5 {[%clk 0:01:09.2]}
97... Kb7 {[%clk 0:00:04.3]} 98. Bc6+ {[%clk 0:01:09.3]} 98... Kc8 {[%clk
0:00:04.6]} 99. Bb6 {[%clk 0:01:09.1]} 99... Kb8 {[%clk 0:00:04.2]} 100. Kb5
{[%clk 0:01:09.6]} 100... Kc8 {[%clk 0:00:04.3]} 101. Ka6 {[%clk 0:01:10.2]}
101... Kb8 {[%clk 0:00:04.3]} 102. Bd7 {[%clk 0:01:10.2]} 102... Ka8 {[%clk
0:00:04.4]} 103. Bd4 {[%clk 0:01:08.8]} 103... Kb8 {[%clk 0:00:04.4]} 104. Be5+
{[%clk 0:01:09.3]} 104... Ka8 {[%clk 0:00:04.3]} 105. Bc6# {[%clk 0:01:10.2]}
1-0